lending/lending_fUSD_20250808
["ID","MTS","AMOUNT","RATE_DAILY","PERIOD"]
[377966227,1754633451412,-1544.67,0.00019154,2]
[377966228,1754633451422,-412.83,0.00019154,2]
[377966229,1754633451432,-438.56,0.00019154,2]
[377966230,1754633451441,-400.0,0.00019154,2]
[377966231,1754633451451,-962.47,0.00019154,2]
[377966232,1754633451461,-690.71,0.00019154,2]
[377966233,1754633451471,-237.86300373,0.00019154,2]
[377966234,1754633451480,-2027.09,0.00019154,2]
[377966235,1754633451490,-1230.71,0.00019154,2]
[377966236,1754633451500,-717.14,0.00019154,2]
[377966237,1754633451510,-400.0,0.00019154,2]
[377966238,1754633451522,-400.0,0.00019154,2]
[377966239,1754633451531,-400.0,0.00019154,2]
[377966240,1754633451542,-400.0,0.00019154,2]
[377966241,1754633451552,-400.0,0.00019154,2]
[377966242,1754633451562,-1053.97,0.00019154,2]
[377966243,1754633451573,-666.85,0.00019154,2]
[377966244,1754633451583,-400.0,0.00019154,2]
[377966245,1754633451594,-400.0,0.00019154,2]
[377966246,1754633451603,-400.0,0.00019154,2]
[377966247,1754633451613,-400.0,0.00019154,2]
[377966248,1754633451623,-400.0,0.00019154,2]
[377966249,1754633451633,-400.0,0.00019154,2]
[377966250,1754633451643,-899.32,0.00019154,2]
[377966251,1754633451653,-1907.85,0.00019154,2]
[377966252,1754633451664,-400.0,0.00019154,2]
[377966253,1754633451674,-400.0,0.00019154,2]
[377966254,1754633451683,-772.9,0.00019154,2]
[377966255,1754633451693,-488.53,0.00019154,2]
[377966256,1754633451703,-764.55,0.00019154,2]
[377966257,1754633451713,-1307.01,0.00019154,2]
[377966258,1754633451723,-1109.33,0.00019154,2]
[377966259,1754633451733,-400.0,0.00019154,2]
[377966260,1754633451743,-423.011485,0.00019154,2]
[377966261,1754633451753,-400.0,0.00019154,2]
[377966262,1754633451763,-419.43,0.00019154,2]
[377966263,1754633451773,-921.96,0.00019154,2]
[377966264,1754633451783,-400.0,0.00019154,2]
[377966265,1754633451794,-758.73,0.00019154,2]
[377966266,1754633451804,-502.591721,0.00019154,2]
[377966267,1754633451814,-497.85,0.00019154,2]
[377966268,1754633451824,-591.72,0.00019154,2]
[377966269,1754633451834,-787.75,0.00019154,2]
[377966270,1754633451844,-400.0,0.00019154,2]
[377966271,1754633451854,-400.0,0.00019154,2]
[377966272,1754633451864,-400.0,0.00019154,2]
[377966273,1754633451874,-400.0,0.00019154,2]
[377966274,1754633451884,-2073.61,0.00019154,2]
[377966275,1754633451894,-400.0,0.00019154,2]
[377966276,1754633451904,-400.0,0.00019154,2]
[377966277,1754633451914,-434.25,0.00019154,2]
[377966278,1754633451924,-600.45,0.00019154,2]
[377966279,1754633451934,-400.0,0.00019154,2]
[377966280,1754633451943,-1533.4,0.00019154,2]
[377966281,1754633451953,-590.8,0.00019154,2]
[377966282,1754633451963,-495.86,0.00019154,2]
[377966283,1754633451972,-460.95200332,0.00019154,2]
[377966284,1754633451982,-400.0,0.00019154,2]
[377966285,1754633451992,-622.78,0.00019154,2]
[377966286,1754633452001,-1080.98,0.00019154,2]
[377966287,1754633452011,-849.77,0.00019154,2]
[377966288,1754633452021,-400.0,0.00019154,2]
[377966289,1754633452031,-503.47,0.00019154,2]
[377966290,1754633452040,-768.76,0.00019154,2]
[377966291,1754633452050,-1473.2,0.00019154,2]
[377966292,1754633452060,-400.0,0.00019154,2]
[377966293,1754633452069,-477.98,0.00019154,2]
[377966294,1754633452079,-733.37,0.00019154,2]
[377966295,1754633452089,-1019.69,0.00019154,2]
[377966296,1754633452348,-5735.2,0.00019154,2]
[377966297,1754633452358,-400.0,0.00019154,2]
[377966298,1754633452368,-565.46,0.00019154,2]
[377966299,1754633452377,-761.96,0.00019154,2]
[377966300,1754633452387,-632.18,0.00019154,2]
[377966301,1754633452396,-974.69,0.00019154,2]
[377966302,1754633452405,-740.43,0.00019154,2]
[377966303,1754633452415,-400.0,0.00019154,2]
[377966304,1754633452424,-400.0,0.00019154,2]
[377966305,1754633452434,-400.0,0.00019154,2]
[377966306,1754633452443,-1508.21,0.00019154,2]
[377966307,1754633452453,-837.8,0.00019154,2]
[377966308,1754633452463,-400.0,0.00019154,2]
[377966309,1754633452472,-561.31,0.00019154,2]
[377966310,1754633452482,-772.33,0.00019154,2]
[377966311,1754633452491,-813.7,0.00019154,2]
[377966312,1754633452501,-1108.84,0.00019154,2]
[377966313,1754633452511,-400.0,0.00019154,2]
[377966314,1754633452520,-929.42,0.00019154,2]
[377966315,1754633452529,-1044.73,0.00019154,2]
[377966316,1754633452539,-400.0,0.00019154,2]
[377966317,1754633452548,-788.41,0.00019154,2]
[377966318,1754633452558,-400.0,0.00019154,2]
[377966319,1754633452568,-400.0,0.00019154,2]
[377966320,1754633452578,-665.38,0.00019154,2]
[377966321,1754633452587,-745.68,0.00019154,2]
[377966322,1754633452596,-789.67,0.00019154,2]
[377966323,1754633452607,-1919.32,0.00019154,2]
[377966324,1754633452616,-969.05,0.00019154,2]
[377966325,1754633452626,-1350.16,0.00019154,2]
[377966326,1754633452636,-400.0,0.00019154,2]
[377966327,1754633452645,-400.0,0.00019154,2]
[377966328,1754633452655,-400.0,0.00019154,2]
[377966329,1754633452664,-400.0,0.00019154,2]
[377966330,1754633452673,-400.0,0.00019154,2]
[377966331,1754633452683,-400.0,0.00019154,2]
[377966332,1754633452692,-400.0,0.00019154,2]
[377966333,1754633452701,-732.31,0.00019154,2]
[377966334,1754633452710,-822.93,0.00019154,2]
[377966335,1754633452720,-1216.14,0.00019154,2]
[377966336,1754633452729,-711.64,0.00019154,2]
[377966337,1754633452738,-400.0,0.00019154,2]
[377966338,1754633452747,-400.0,0.00019154,2]
[377966339,1754633452757,-400.0,0.00019154,2]
[377966340,1754633452767,-433.3,0.00019154,2]
[377966341,1754633452777,-429.77,0.00019154,2]
[377966342,1754633452787,-936.99,0.00019154,2]
[377966343,1754633452800,-400.0,0.00019154,2]
[377966344,1754633452810,-1412.2,0.00019154,2]
[377966345,1754633452819,-2276.05,0.00019154,2]
[377966346,1754633452829,-400.0,0.00019154,2]
[377966347,1754633452838,-400.0,0.00019154,2]
[377966348,1754633452848,-1350.92,0.00019154,2]
[377966349,1754633452858,-959.49,0.00019154,2]
[377966350,1754633452867,-470.07,0.00019154,2]
[377966351,1754633452877,-400.0,0.00019154,2]
[377966352,1754633452886,-772.17,0.00019154,2]
[377966353,1754633452895,-735.36,0.00019154,2]
[377966354,1754633452905,-400.0,0.00019154,2]
[377966355,1754633452913,-403.59,0.00019154,2]
[377966356,1754633452923,-782.7,0.00019154,2]
[377966357,1754633452933,-400.0,0.00019154,2]
[377966358,1754633452942,-2726.7,0.00019154,2]
[377966359,1754633452952,-1173.78,0.00019154,2]
[377966360,1754633452961,-794.35,0.00019154,2]
[377966361,1754633452971,-400.0,0.00019154,2]
[377966362,1754633452980,-400.0,0.00019154,2]
[377966363,1754633452989,-400.0,0.00019154,2]
[377966364,1754633452999,-1095.07,0.00019154,2]
[377966365,1754633453008,-419.01,0.00019154,2]
[377966366,1754633453018,-400.0,0.00019155,2]
[377966367,1754633453027,-359.15,0.00019155,2]
[377966368,1754633453037,-400.0,0.00019155,2]
[377966369,1754633453048,-400.0,0.00019155,2]
[377966370,1754633453057,-400.0,0.00019155,2]
[377966371,1754633453066,-400.0,0.00019155,2]
[377966372,1754633453076,-713.81,0.00019155,2]
[377966373,1754633453086,-400.0,0.00019155,2]
[377966374,1754633453095,-400.0,0.00019155,2]
[377966375,1754633453105,-600.7,0.00019155,2]
[377966376,1754633453115,-400.0,0.00019155,2]
[377966377,1754633453124,-400.0,0.00019155,2]
[377966378,1754633453134,-400.0,0.00019155,2]
[377966379,1754633453143,-400.0,0.00019155,2]
[377966380,1754633453152,-663.46,0.00019155,2]
[377966381,1754633453162,-400.0,0.00019155,2]
[377966382,1754633453182,-529.02,0.00019155,2]
[377966383,1754633453194,-799.89,0.00019155,2]
[377966384,1754633453204,-466.76483613,0.00019155,2]
[377966385,1754633453214,-234.13,0.00019155,2]
[377966386,1754633453223,-890.26,0.00019155,2]
[377966387,1754633453233,-556.98,0.00019155,2]
[377966388,1754633453243,-600.12,0.00019155,2]
[377966389,1754633453253,-400.0,0.00019155,2]
[377966390,1754633453263,-400.0,0.00019155,2]
[377966391,1754633453273,-400.0,0.00019155,2]
[377966392,1754633453282,-540.01,0.00019155,2]
[377966393,1754633453293,-625.06,0.00019155,2]
[377966394,1754633453303,-400.0,0.00019155,2]
[377966395,1754633453313,-712.38,0.00019155,2]
[377966396,1754633453324,-832.54,0.00019155,2]
[377966397,1754633453334,-400.0,0.00019155,2]
[377966398,1754633453344,-400.0,0.00019155,2]
[377966399,1754633453354,-400.0,0.00019155,2]
[377966400,1754633453364,-400.0,0.00019155,2]
[377966401,1754633453375,-400.0,0.00019155,2]
[377966402,1754633453385,-400.0,0.00019155,2]
[377966403,1754633453395,-400.0,0.00019155,2]
[377966404,1754633453404,-400.0,0.00019155,2]
[377966405,1754633453414,-400.0,0.00019155,2]
[377966406,1754633453424,-527.91,0.00019155,2]
[377966407,1754633453433,-400.0,0.00019155,2]
[377966408,1754633453443,-843.72,0.00019155,2]
[377966409,1754633453453,-857.77,0.00019155,2]
[377966410,1754633453463,-400.0,0.00019155,2]
[377966411,1754633453473,-659.76,0.00019155,2]
[377966412,1754633453482,-526.7,0.00019155,2]
[377966413,1754633453492,-472.66,0.00019155,2]
[377966414,1754633453501,-400.0,0.00019155,2]
[377966415,1754633453511,-400.0,0.00019155,2]
[377966416,1754633453521,-792.72,0.00019155,2]
[377966417,1754633453530,-720.65,0.00019155,2]
[377966418,1754633453541,-400.59,0.00019155,2]
[377966419,1754633453550,-400.0,0.00019155,2]
[377966420,1754633453560,-400.0,0.00019155,2]
[377966421,1754633453570,-400.0,0.00019155,2]
[377966422,1754633453579,-400.0,0.00019155,2]
[377966423,1754633453589,-400.0,0.00019155,2]
[377966424,1754633453600,-485.75,0.00019155,2]
[377966425,1754633453609,-400.0,0.00019155,2]
[377966426,1754633453619,-400.0,0.00019155,2]
[377966427,1754633453629,-400.0,0.00019155,2]
[377966428,1754633453638,-449.48,0.00019155,2]
[377966429,1754633453647,-400.0,0.00019155,2]
[377966430,1754633453657,-816.33,0.00019155,2]
[377966431,1754633453667,-400.0,0.00019155,2]
[377966432,1754633453677,-400.0,0.00019155,2]
[377966433,1754633453686,-778.34,0.00019155,2]
[377966434,1754633453696,-400.0,0.00019155,2]
[377966435,1754633453706,-506.68,0.00019155,2]
[377966436,1754633453715,-924.93,0.00019155,2]
[377966437,1754633453724,-400.0,0.00019155,2]
[377966438,1754633453734,-400.0,0.00019155,2]
[377966439,1754633453744,-400.0,0.00019155,2]
[377966440,1754633453754,-400.0,0.00019155,2]
[377966441,1754633453763,-400.0,0.00019155,2]
[377966442,1754633453772,-400.0,0.00019155,2]
[377966443,1754633453783,-400.0,0.00019155,2]
[377966444,1754633453794,-869.5,0.00019155,2]
[377966445,1754633453803,-750.37,0.00019155,2]
[377966446,1754633453813,-686.31,0.00019155,2]
[377966447,1754633453822,-729.83,0.00019155,2]
[377966448,1754633453831,-439.23,0.00019155,2]
[377966449,1754633453840,-400.0,0.00019155,2]
[377966450,1754633453850,-713.89,0.00019155,2]
[377966451,1754633453860,-400.0,0.00019155,2]
[377966452,1754633453869,-400.0,0.00019155,2]
[377966453,1754633453879,-400.0,0.00019155,2]
[377966454,1754633453889,-653.97,0.00019155,2]
[377966455,1754633453898,-400.0,0.00019155,2]
[377966456,1754633453907,-400.0,0.00019155,2]
[377966457,1754633453916,-1468.06,0.00019155,2]
[377966458,1754633453926,-400.0,0.00019155,2]
[377966459,1754633453936,-402.2,0.00019155,2]
[377966460,1754633453946,-400.0,0.00019155,2]
[377966461,1754633453955,-660.99,0.00019155,2]
[377966462,1754633453965,-400.0,0.00019155,2]
[377966463,1754633453975,-400.0,0.00019155,2]
[377966464,1754633453985,-400.0,0.00019155,2]
[377966465,1754633453995,-400.0,0.00019155,2]
[377966466,1754633454005,-1040.88,0.00019155,2]
[377966467,1754633454014,-400.0,0.00019155,2]
[377966468,1754633454024,-400.0,0.00019155,2]
[377966469,1754633454034,-412.71,0.00019155,2]
[377966470,1754633454044,-400.0,0.00019155,2]
[377966471,1754633454054,-464.5,0.00019155,2]
[377966472,1754633454064,-794.44,0.00019155,2]
[377966473,1754633454074,-1092.56,0.00019155,2]
[377966474,1754633454083,-400.0,0.00019155,2]
[377966475,1754633454093,-400.0,0.00019155,2]
[377966476,1754633454102,-400.0,0.00019155,2]
[377966477,1754633454111,-400.0,0.00019155,2]
[377966478,1754633454121,-975.27,0.00019155,2]
[377966479,1754633454130,-819.33,0.00019155,2]
[377966480,1754633454140,-699.71,0.00019155,2]
[377966481,1754633454150,-406.68,0.00019155,2]
[377966482,1754633454159,-697.96,0.00019155,2]
[377966483,1754633454169,-400.0,0.00019155,2]
[377966484,1754633454179,-1098.98,0.00019155,2]
[377966485,1754633454191,-668.25,0.00019155,2]
[377966486,1754633454200,-400.0,0.00019155,2]
[377966487,1754633454209,-1437.6,0.00019155,2]
[377966488,1754633454219,-1104.49,0.00019155,2]
[377966489,1754633454229,-476.82268364,0.00019155,2]
[377966490,1754633454239,-644.56,0.00019155,2]
[377966491,1754633454249,-484.45,0.00019155,2]
[377966492,1754633454259,-400.0,0.00019155,2]
[377966493,1754633454269,-955.13,0.00019155,2]
[377966494,1754633454278,-1008.0,0.00019155,2]
[377966495,1754633454288,-400.0,0.00019155,2]
[377966496,1754633454298,-400.0,0.00019155,2]
[377966497,1754633454308,-400.0,0.00019155,2]
[377966498,1754633454317,-1000.11,0.00019155,2]
[377966499,1754633454326,-400.0,0.00019155,2]
[377966500,1754633454336,-400.0,0.00019155,2]
[377966501,1754633454346,-400.0,0.00019155,2]
[377966502,1754633454355,-807.4,0.00019155,2]
[377966503,1754633454365,-852.39,0.00019155,2]
[377966504,1754633454375,-412.52,0.00019155,2]
[377966505,1754633454385,-556.55,0.00019155,2]
[377966506,1754633454395,-704.0,0.00019155,2]
[377966507,1754633454404,-447.61,0.00019155,2]
[377966508,1754633454414,-498.62,0.00019155,2]
[377966509,1754633454424,-1178.67,0.00019155,2]
[377966510,1754633454433,-851.09,0.00019155,2]
[377966511,1754633454443,-715.34,0.00019155,2]
[377966512,1754633454453,-507.94,0.00019155,2]
[377966513,1754633454463,-526.5,0.00019155,2]
[377966514,1754633454473,-804.15,0.00019155,2]
[377966515,1754633454482,-537.32,0.00019155,2]
[377966516,1754633454492,-550.2,0.00019155,2]
[377966517,1754633454502,-1208.32,0.00019155,2]
[377966518,1754633454511,-958.8,0.00019155,2]
[377966519,1754633454521,-803.23,0.00019155,2]
[377966520,1754633454531,-733.63,0.00019155,2]
[377966521,1754633454541,-1888.5,0.00019155,2]
[377966522,1754633454551,-400.0,0.00019155,2]
[377966523,1754633454560,-1193.08,0.00019155,2]
[377966524,1754633454569,-400.0,0.00019155,2]
[377966525,1754633454579,-400.0,0.00019155,2]
[377966526,1754633454589,-1224.48,0.00019155,2]
[377966527,1754633454598,-400.0,0.00019155,2]
[377966528,1754633454608,-400.0,0.00019155,2]
[377966529,1754633454617,-1017.61,0.00019155,2]
[377966530,1754633454627,-604.7,0.00019155,2]
[377966531,1754633454636,-400.0,0.00019155,2]
[377966532,1754633454747,-400.0,0.00019155,2]
[377966533,1754633454757,-1355.75,0.00019155,2]
[377966534,1754633454766,-554.88,0.00019155,2]
[377966535,1754633454775,-899.78,0.00019155,2]
[377966536,1754633454784,-400.0,0.00019155,2]
[377966537,1754633454794,-400.0,0.00019155,2]
[377966538,1754633454803,-936.6,0.00019155,2]
[377966539,1754633454813,-574.32,0.00019155,2]
[377966540,1754633454822,-911.94,0.00019155,2]
[377966541,1754633454831,-788.85,0.00019155,2]
[377966542,1754633454840,-600.29,0.00019155,2]
[377966543,1754633454849,-1155.16,0.00019155,2]
[377966544,1754633454859,-1931.27,0.00019155,2]
[377966545,1754633454868,-944.46,0.00019155,2]
[377966546,1754633454877,-1060.54,0.00019155,2]
[377966547,1754633454886,-400.0,0.00019155,2]
[377966548,1754633454895,-400.0,0.00019155,2]
[377966549,1754633454904,-635.85,0.00019155,2]
[377966550,1754633454913,-400.0,0.00019155,2]
[377966551,1754633454923,-1024.94,0.00019155,2]
[377966552,1754633454932,-400.0,0.00019155,2]
[377966553,1754633454942,-400.0,0.00019155,2]
[377966554,1754633454951,-400.0,0.00019155,2]
[377966555,1754633454960,-400.0,0.00019155,2]
[377966556,1754633454969,-1174.97,0.00019155,2]
[377966557,1754633454978,-422.84,0.00019155,2]
[377966558,1754633454987,-328.40944682,0.00019155,2]
[377966559,1754633454996,-505.97,0.00019155,2]
[377966560,1754633455005,-708.36,0.00019155,2]
[377966561,1754633455014,-922.72,0.00019155,2]
[377966562,1754633455023,-456.24,0.00019155,2]
[377966563,1754633455032,-400.0,0.00019155,2]
[377966564,1754633455043,-451.98,0.00019155,2]
[377966565,1754633455052,-813.37,0.00019155,2]
[377966566,1754633455061,-400.0,0.00019155,2]
[377966567,1754633455070,-1081.45,0.00019155,2]
[377966568,1754633455079,-850.71,0.00019155,2]
[377966569,1754633455088,-1329.33,0.00019155,2]
[377966570,1754633455097,-897.4,0.00019155,2]
[377966571,1754633455106,-400.0,0.00019155,2]
[377966572,1754633455115,-400.0,0.00019155,2]
[377966573,1754633455125,-970.75,0.00019155,2]
[377966574,1754633455134,-400.0,0.00019155,2]
[377966575,1754633455145,-846.24,0.00019155,2]
[377966576,1754633455155,-400.0,0.00019155,2]
[377966577,1754633455164,-1264.5,0.00019155,2]
[377966578,1754633455174,-400.0,0.00019155,2]
[377966579,1754633455186,-1447.02,0.00019155,2]
[377966580,1754633455195,-400.0,0.00019155,2]
[377966581,1754633455205,-1347.11,0.00019155,2]
[377966582,1754633455214,-400.0,0.00019155,2]
[377966583,1754633455223,-403.83,0.00019155,2]
[377966584,1754633455232,-400.0,0.00019155,2]
[377966585,1754633455242,-400.0,0.00019155,2]
[377966586,1754633455251,-774.21,0.00019155,2]
[377966587,1754633455260,-400.0,0.00019155,2]
[377966588,1754633455270,-1098.16,0.00019155,2]
[377966589,1754633455280,-1837.54,0.00019155,2]
[377966590,1754633455289,-494.89892147,0.00019155,2]
[377966591,1754633455299,-836.84,0.00019155,2]
[377966592,1754633455309,-897.92,0.00019155,2]
[377966593,1754633455318,-1107.58,0.00019155,2]
[377966594,1754633455327,-407.50562857,0.00019155,2]
[377966595,1754633455336,-802.15,0.00019155,2]
[377966596,1754633455346,-1470.13,0.00019155,2]
[377966597,1754633455355,-1305.38,0.00019155,2]
[377966598,1754633455365,-1600.93,0.00019155,2]
[377966599,1754633455374,-1415.01,0.00019155,2]
[377966600,1754633455383,-400.0,0.00019155,2]
[377966601,1754633455393,-1081.7,0.00019155,2]
[377966602,1754633455402,-495.11,0.00019155,2]
[377966603,1754633455411,-1454.56,0.00019155,2]
[377966604,1754633455421,-750.92,0.00019155,2]
[377966605,1754633455430,-400.0,0.00019155,2]
[377966606,1754633455440,-707.55,0.00019155,2]
[377966607,1754633455450,-883.08,0.00019155,2]
[377966608,1754633455459,-885.57,0.00019155,2]
[377966609,1754633455468,-1704.02,0.00019155,2]
[377966610,1754633455478,-799.18,0.00019155,2]
[377966611,1754633455488,-1363.7,0.00019155,2]
[377966612,1754633455498,-1086.69,0.00019155,2]
[377966613,1754633455511,-791.02,0.00019155,2]
[377966614,1754633455523,-473.49,0.00019155,2]
[377966615,1754633455538,-889.62,0.00019155,2]
[377966616,1754633455549,-1180.13,0.00019155,2]
[377966617,1754633455559,-1837.12,0.00019155,2]
[377966618,1754633455568,-789.15,0.00019155,2]
[377966619,1754633455578,-400.0,0.00019155,2]
[377966620,1754633455587,-538.83,0.00019155,2]
[377966621,1754633455597,-400.0,0.00019155,2]
[377966622,1754633455606,-1217.89,0.00019155,2]
[377966623,1754633455615,-695.97,0.00019155,2]
[377966624,1754633455625,-385.38583826,0.00019155,2]
[377966625,1754633455634,-342.22789927,0.00019155,2]
[377966626,1754633455644,-1194.05,0.00019155,2]
[377966627,1754633455653,-553.28,0.00019155,2]
[377966628,1754633455662,-400.0,0.00019155,2]
[377966629,1754633455672,-1443.9,0.00019155,2]
[377966630,1754633455681,-1093.77,0.00019155,2]
[377966631,1754633455690,-1129.68,0.00019155,2]
[377966632,1754633455700,-829.0,0.00019155,2]
[377966633,1754633455709,-652.57,0.00019155,2]
[377966634,1754633455718,-1676.16,0.00019155,2]
[377966635,1754633455727,-1151.11,0.00019155,2]
[377966636,1754633455737,-412.98,0.00019155,2]
[377966637,1754633455746,-400.0,0.00019155,2]
[377966638,1754633455756,-400.0,0.00019155,2]
[377966639,1754633455766,-793.42,0.00019155,2]
[377966640,1754633455776,-1132.71,0.00019155,2]
[377966641,1754633455787,-710.13,0.00019155,2]
[377966642,1754633455797,-400.0,0.00019155,2]
[377966643,1754633455806,-400.0,0.00019155,2]
[377966644,1754633455815,-576.98,0.00019155,2]
[377966645,1754633455825,-1262.9,0.00019155,2]
[377966646,1754633455834,-400.0,0.00019155,2]
[377966647,1754633455843,-400.0,0.00019155,2]
[377966648,1754633455852,-1164.73,0.00019155,2]
[377966649,1754633455861,-1373.17,0.00019155,2]
[377966650,1754633455870,-400.0,0.00019155,2]
[377966651,1754633455879,-916.46,0.00019155,2]
[377966652,1754633455888,-1244.78,0.00019155,2]
[377966653,1754633455897,-400.0,0.00019155,2]
[377966654,1754633455907,-1952.98,0.00019155,2]
[377966655,1754633455916,-1132.6,0.00019155,2]
[377966656,1754633455925,-950.46,0.00019155,2]
[377966657,1754633455935,-785.79,0.00019155,2]
[377966658,1754633455943,-14667.51,0.00019155,2]
[377966659,1754633455953,-400.0,0.00019155,2]
[377966660,1754633455963,-1711.39,0.00019155,2]
[377966661,1754633455972,-415.68,0.00019155,2]
[377966662,1754633455981,-749.01,0.00019155,2]
[377966663,1754633455990,-400.0,0.00019155,2]
[377966664,1754633455999,-848.99,0.00019155,2]
[377966665,1754633456008,-1165.76,0.00019155,2]
[377966666,1754633456019,-400.0,0.00019155,2]
[377966667,1754633456028,-1444.09,0.00019155,2]
[377966668,1754633456042,-910.16,0.00019155,2]
[377966669,1754633456052,-400.0,0.00019155,2]
[377966670,1754633456061,-1021.7,0.00019155,2]
[377966671,1754633456070,-400.0,0.00019155,2]
[377966672,1754633456079,-932.13,0.00019155,2]
[377966673,1754633456088,-848.11,0.00019155,2]
[377966674,1754633456098,-557.97,0.00019155,2]
[377966675,1754633456107,-400.0,0.00019155,2]
[377966676,1754633456116,-400.0,0.00019155,2]
[377966677,1754633456125,-400.0,0.00019155,2]
[377966678,1754633456135,-1530.82,0.00019155,2]
[377966679,1754633456144,-400.0,0.00019155,2]
[377966680,1754633456153,-1005.17,0.00019155,2]
[377966681,1754633456162,-1013.78,0.00019155,2]
[377966682,1754633456171,-400.0,0.00019155,2]
[377966683,1754633456181,-1124.62,0.00019155,2]
[377966684,1754633456193,-1101.97,0.00019155,2]
[377966685,1754633456202,-1158.1,0.00019155,2]
[377966686,1754633456211,-400.0,0.00019155,2]
[377966687,1754633456221,-821.7,0.00019155,2]
[377966688,1754633456230,-616.35,0.00019155,2]
[377966689,1754633456239,-400.0,0.00019155,2]
[377966690,1754633456248,-400.0,0.00019155,2]
[377966691,1754633456258,-449.09443483,0.00019155,2]
[377966692,1754633456269,-1326.15,0.00019155,2]
[377966693,1754633456279,-1092.9,0.00019155,2]
[377966694,1754633456289,-400.0,0.00019155,2]
[377966695,1754633456299,-572.84,0.00019155,2]
[377966696,1754633456309,-711.42,0.00019155,2]
[377966697,1754633456318,-727.18,0.00019155,2]
[377966698,1754633456327,-522.64,0.00019155,2]
[377966699,1754633456336,-472.86,0.00019155,2]
[377966700,1754633456346,-815.71,0.00019155,2]
[377966701,1754633456355,-411.62,0.00019155,2]
[377966702,1754633456364,-681.6,0.00019155,2]
[377966703,1754633456374,-638.5,0.00019155,2]
[377966704,1754633456383,-1397.7,0.00019155,2]
[377966705,1754633456392,-400.0,0.00019155,2]
[377966706,1754633456401,-400.0,0.00019155,2]
[377966707,1754633456410,-593.32,0.00019155,2]
[377966708,1754633456420,-400.0,0.00019155,2]
[377966709,1754633456429,-842.19,0.00019155,2]
[377966710,1754633456438,-1435.04,0.00019155,2]
[377966711,1754633456447,-400.0,0.00019155,2]
[377966712,1754633456457,-1177.75,0.00019155,2]
[377966713,1754633456466,-400.0,0.00019155,2]
[377966714,1754633456475,-471.0,0.00019155,2]
[377966715,1754633456484,-465.02,0.00019155,2]
[377966716,1754633456497,-400.0,0.00019155,2]
[377966717,1754633456506,-2109.91,0.00019155,2]
[377966718,1754633456515,-832.12,0.00019155,2]
[377966719,1754633456525,-430.17,0.00019155,2]
[377966720,1754633456535,-953.29,0.00019155,2]
[377966721,1754633456544,-643.11,0.00019155,2]
[377966722,1754633456554,-1623.53,0.00019155,2]
[377966723,1754633456563,-400.0,0.00019155,2]
[377966724,1754633456572,-988.4,0.00019155,2]
[377966725,1754633456582,-400.0,0.00019155,2]
[377966726,1754633456592,-400.0,0.00019155,2]